[Event "Titled Tuesday Blitz April 11 Late 2023"]
[White "Keymer, Vincent"]
[Black "Sargsyan, Shant"]
[WhiteFideId "12940690"]
[BlackFideId "13306766"]
[WhiteElo "2651"]
[BlackElo "2628"]
[Result "0-1"]
[Round "07"]
[TimeControl "180+2"]
[Date "2023.04.11"]
[WhiteClock "0:00:05"]
[BlackClock "0:00:11"]

1. Nf3 {[%clk 0:03:00]}  g6 {[%clk 0:03:00]} 2. d4 {[%clk 0:02:55]}  Bg7 {[%clk 0:03:00]} 3. a3 {[%clk 0:02:56]}  d6 {[%clk 0:02:59]} 4. b4 {[%clk 0:02:54]}  c5 {[%clk 0:02:56]} 5. Bb2 {[%clk 0:02:50]}  Nc6 {[%clk 0:02:55]} 6. c3 {[%clk 0:02:37]}  Nf6 {[%clk 0:02:53]} 7. d5 {[%clk 0:02:26]}  Nb8 {[%clk 0:02:50]} 8. e3 {[%clk 0:02:21]}  O-O {[%clk 0:02:49]} 9. c4 {[%clk 0:02:14]}  e6 {[%clk 0:02:45]} 10. dxe6 {[%clk 0:02:07]}  Bxe6 {[%clk 0:02:44]} 11. Be2 {[%clk 0:02:02]}  cxb4 {[%clk 0:02:45]} 12. axb4 {[%clk 0:02:00]}  Na6 {[%clk 0:02:45]} 13. Bc3 {[%clk 0:01:28]}  Rc8 {[%clk 0:02:41]} 14. Nbd2 {[%clk 0:01:26]}  Qb6 {[%clk 0:02:25]} 15. Qb3 {[%clk 0:01:08]}  Nd7 {[%clk 0:02:12]} 16. Bxg7 {[%clk 0:01:07]}  Kxg7 {[%clk 0:02:13]} 17. Qb2+ {[%clk 0:01:01]}  f6 {[%clk 0:02:08]} 18. Nd4 {[%clk 0:00:55]}  Bf7 {[%clk 0:02:08]} 19. Bg4 {[%clk 0:00:38]}  Ne5 {[%clk 0:01:58]} 20. Be2 {[%clk 0:00:25]}  Nxb4 {[%clk 0:01:57]} 21. O-O {[%clk 0:00:23]}  a5 {[%clk 0:01:50]} 22. Rfc1 {[%clk 0:00:21]}  Rfe8 {[%clk 0:01:41]} 23. Qa3 {[%clk 0:00:20]}  Nec6 {[%clk 0:01:32]} 24. Nxc6 {[%clk 0:00:17]}  Nxc6 {[%clk 0:01:33]} 25. Rab1 {[%clk 0:00:17]}  Qc7 {[%clk 0:01:32]} 26. Bf3 {[%clk 0:00:17]}  b6 {[%clk 0:01:29]} 27. Ne4 {[%clk 0:00:16]}  Nb4 {[%clk 0:01:19]} 28. Rd1 {[%clk 0:00:09]}  Rcd8 {[%clk 0:01:14]} 29. Qb2 {[%clk 0:00:09]}  Qe7 {[%clk 0:01:14]} 30. Qd4 {[%clk 0:00:07]}  d5 {[%clk 0:01:11]} 31. cxd5 {[%clk 0:00:05]}  Rxd5 {[%clk 0:01:11]} 32. Qxb6 {[%clk 0:00:05]}  Qd8 {[%clk 0:00:37]} 33. Qxd8 {[%clk 0:00:04]}  Rexd8 {[%clk 0:00:38]} 34. Rxd5 {[%clk 0:00:04]}  Rxd5 {[%clk 0:00:38]} 35. Ra1 {[%clk 0:00:03]}  Re5 {[%clk 0:00:31]} 36. Nd2 {[%clk 0:00:02]}  Rc5 {[%clk 0:00:24]} 37. Kf1 {[%clk 0:00:02]}  Nc2 {[%clk 0:00:22]} 38. Ra4 {[%clk 0:00:01]}  Be8 {[%clk 0:00:22]} 39. Ra2 {[%clk 0:00:02]}  Bb5+ {[%clk 0:00:17]} 40. Be2 {[%clk 0:00:02]}  Nb4 {[%clk 0:00:13]} 41. Ra1 {[%clk 0:00:02]}  Nc2 {[%clk 0:00:12]} 42. Ra2 {[%clk 0:00:01]}  Bd7 {[%clk 0:00:12]} 43. Rb2 {[%clk 0:00:01]}  Nb4 {[%clk 0:00:12]} 44. Rb1 {[%clk 0:00:01]}  Bf5 {[%clk 0:00:12]} 45. Ra1 {[%clk 0:00:01]}  Nc2 {[%clk 0:00:12]} 46. Rd1 {[%clk 0:00:01]}  a4 {[%clk 0:00:11]} 47. Nc4 {[%clk 0:00:02]}  Be6 {[%clk 0:00:11]} 48. Rc1 {[%clk 0:00:01]}  Bxc4 {[%clk 0:00:09]} 49. Rxc2 {[%clk 0:00:01]}  Bxe2+ {[%clk 0:00:09]} 50. Rxe2 {[%clk 0:00:02]}  Rc1+ {[%clk 0:00:09]} 51. Re1 {[%clk 0:00:03]}  Rxe1+ {[%clk 0:00:09]} 52. Kxe1 {[%clk 0:00:04]}  a3 {[%clk 0:00:10]} 53. Kd2 {[%clk 0:00:05]}  a2 {[%clk 0:00:11]} 0-1


[Site "https://www.chess.com"]

[Event "Titled Tuesday Blitz April 11 Late 2023"]
[White "Svane, Rasmus"]
[Black "Lobanov, Sergei"]
[WhiteFideId "4657101"]
[BlackFideId "24183750"]
[WhiteElo "2597"]
[BlackElo "2489"]
[Result "1-0"]
[Round "07"]
[TimeControl "180+2"]
[Date "2023.04.11"]
[WhiteClock "0:01:52"]
[BlackClock "0:01:13"]

1. Nf3 {[%clk 0:03:00]}  d5 {[%clk 0:02:59]} 2. g3 {[%clk 0:03:01]}  Nf6 {[%clk 0:02:59]} 3. Bg2 {[%clk 0:03:00]}  e6 {[%clk 0:02:59]} 4. O-O {[%clk 0:03:00]}  Be7 {[%clk 0:02:59]} 5. c4 {[%clk 0:03:00]}  O-O {[%clk 0:02:59]} 6. b3 {[%clk 0:03:01]}  c5 {[%clk 0:02:59]} 7. cxd5 {[%clk 0:03:01]}  exd5 {[%clk 0:02:59]} 8. d4 {[%clk 0:03:01]}  cxd4 {[%clk 0:02:59]} 9. Nxd4 {[%clk 0:03:02]}  Nc6 {[%clk 0:02:59]} 10. Bb2 {[%clk 0:03:02]}  Bg4 {[%clk 0:02:59]} 11. Nc3 {[%clk 0:03:02]}  Re8 {[%clk 0:02:56]} 12. Rc1 {[%clk 0:03:01]}  Rc8 {[%clk 0:02:55]} 13. h3 {[%clk 0:02:59]}  Bd7 {[%clk 0:02:24]} 14. e3 {[%clk 0:02:52]}  Bd6 {[%clk 0:02:11]} 15. Nxd5 {[%clk 0:02:48]}  Nxd5 {[%clk 0:02:07]} 16. Bxd5 {[%clk 0:02:49]}  Nxd4 {[%clk 0:01:50]} 17. Rxc8 {[%clk 0:02:27]}  Qxc8 {[%clk 0:01:50]} 18. Bxd4 {[%clk 0:02:23]}  Bxh3 {[%clk 0:01:49]} 19. Qf3 {[%clk 0:02:19]}  Qd7 {[%clk 0:01:37]} 20. Rd1 {[%clk 0:02:01]}  Bg4 {[%clk 0:01:35]} 21. Bxf7+ {[%clk 0:02:01]}  Qxf7 {[%clk 0:01:27]} 22. Qxg4 {[%clk 0:02:00]}  Bf8 {[%clk 0:01:26]} 23. Bxa7 {[%clk 0:01:55]}  Ra8 {[%clk 0:01:27]} 24. Rd7 {[%clk 0:01:54]}  Qf6 {[%clk 0:01:13]} 25. Bd4 {[%clk 0:01:52]} 1-0


[Site "https://www.chess.com"]

[Event "Titled Tuesday Blitz April 11 Late 2023"]
[White "Klukin, Kirill"]
[Black "Steinberg, Nitzan"]
[WhiteFideId "24199273"]
[BlackFideId "2801795"]
[WhiteElo "2344"]
[BlackElo "2486"]
[Result "1-0"]
[Round "07"]
[TimeControl "180+2"]
[Date "2023.04.11"]
[WhiteClock "0:00:18"]
[BlackClock "0:00:50"]

1. d4 {[%clk 0:02:54]}  d5 {[%clk 0:02:59]} 2. Nf3 {[%clk 0:02:55]}  Nf6 {[%clk 0:02:58]} 3. c4 {[%clk 0:02:55]}  e6 {[%clk 0:02:58]} 4. e3 {[%clk 0:02:55]}  c5 {[%clk 0:02:58]} 5. Nc3 {[%clk 0:02:56]}  a6 {[%clk 0:02:59]} 6. cxd5 {[%clk 0:02:56]}  exd5 {[%clk 0:02:59]} 7. Be2 {[%clk 0:02:56]}  Nc6 {[%clk 0:03:00]} 8. O-O {[%clk 0:02:56]}  Be7 {[%clk 0:02:57]} 9. dxc5 {[%clk 0:02:56]}  Bxc5 {[%clk 0:02:58]} 10. b3 {[%clk 0:02:55]}  O-O {[%clk 0:02:58]} 11. Bb2 {[%clk 0:02:55]}  Re8 {[%clk 0:02:56]} 12. Rc1 {[%clk 0:02:56]}  Ba7 {[%clk 0:02:56]} 13. Na4 {[%clk 0:02:54]}  Ne4 {[%clk 0:02:56]} 14. Nd4 {[%clk 0:02:53]}  Bd7 {[%clk 0:02:51]} 15. Bf3 {[%clk 0:02:53]}  Ne5 {[%clk 0:02:46]} 16. Nc3 {[%clk 0:02:46]}  Nxf3+ {[%clk 0:02:35]} 17. Nxf3 {[%clk 0:02:44]}  Bg4 {[%clk 0:02:29]} 18. Nxd5 {[%clk 0:02:10]}  Re6 {[%clk 0:02:13]} 19. Nc7 {[%clk 0:01:38]}  Rd6 {[%clk 0:02:05]} 20. Qc2 {[%clk 0:01:34]}  Bxf3 {[%clk 0:01:52]} 21. gxf3 {[%clk 0:01:04]}  Nd2 {[%clk 0:01:52]} 22. Nxa8 {[%clk 0:00:57]}  Rc6 {[%clk 0:01:52]} 23. Qd1 {[%clk 0:00:45]}  Rg6+ {[%clk 0:01:19]} 24. Kh1 {[%clk 0:00:45]}  h5 {[%clk 0:01:18]} 25. Rg1 {[%clk 0:00:42]}  Qd5 {[%clk 0:01:01]} 26. Rxg6 {[%clk 0:00:34]}  fxg6 {[%clk 0:01:01]} 27. Nc7 {[%clk 0:00:26]}  Qf5 {[%clk 0:00:54]} 28. Qxd2 {[%clk 0:00:24]}  Qxf3+ {[%clk 0:00:54]} 29. Kg1 {[%clk 0:00:25]}  Kh7 {[%clk 0:00:53]} 30. Qd1 {[%clk 0:00:20]}  Qf7 {[%clk 0:00:53]} 31. Nd5 {[%clk 0:00:20]}  Bb8 {[%clk 0:00:54]} 32. Nf4 {[%clk 0:00:19]}  Qf5 {[%clk 0:00:54]} 33. Qd4 {[%clk 0:00:17]}  Qg4+ {[%clk 0:00:50]} 34. Kf1 {[%clk 0:00:18]} 1-0


[Site "https://www.chess.com"]

[Event "Titled Tuesday Blitz April 11 Late 2023"]
[White "Eljanov, Pavel"]
[Black "Hasangatin, Ramil"]
[WhiteFideId "14102951"]
[BlackFideId "4122160"]
[WhiteElo "2598"]
[BlackElo "2275"]
[Result "1-0"]
[Round "07"]
[TimeControl "180+2"]
[Date "2023.04.11"]
[WhiteClock "0:00:21"]
[BlackClock "0:00:02"]

1. c4 {[%clk 0:02:56]}  e5 {[%clk 0:02:58]} 2. Nc3 {[%clk 0:02:56]}  Nf6 {[%clk 0:02:59]} 3. Nf3 {[%clk 0:02:53]}  Nc6 {[%clk 0:02:58]} 4. e4 {[%clk 0:02:53]}  Bb4 {[%clk 0:02:51]} 5. d3 {[%clk 0:02:53]}  a6 {[%clk 0:02:48]} 6. a3 {[%clk 0:02:49]}  Bxc3+ {[%clk 0:02:47]} 7. bxc3 {[%clk 0:02:49]}  b5 {[%clk 0:02:47]} 8. cxb5 {[%clk 0:02:31]}  axb5 {[%clk 0:02:48]} 9. Rb1 {[%clk 0:02:30]}  Ba6 {[%clk 0:02:46]} 10. Be2 {[%clk 0:02:27]}  O-O {[%clk 0:02:44]} 11. O-O {[%clk 0:02:27]}  d6 {[%clk 0:02:44]} 12. Bg5 {[%clk 0:02:23]}  h6 {[%clk 0:02:43]} 13. Bh4 {[%clk 0:02:23]}  Qe7 {[%clk 0:02:39]} 14. Re1 {[%clk 0:02:01]}  Rfb8 {[%clk 0:02:31]} 15. d4 {[%clk 0:01:52]}  g5 {[%clk 0:02:16]} 16. Nxg5 {[%clk 0:01:48]}  hxg5 {[%clk 0:02:16]} 17. Bxg5 {[%clk 0:01:48]}  Kg7 {[%clk 0:02:16]} 18. f4 {[%clk 0:01:42]}  exf4 {[%clk 0:02:10]} 19. Bd3 {[%clk 0:01:31]}  b4 {[%clk 0:01:08]} 20. axb4 {[%clk 0:01:31]}  Bxd3 {[%clk 0:01:06]} 21. Qxd3 {[%clk 0:01:32]}  Qe6 {[%clk 0:01:04]} 22. Qf3 {[%clk 0:01:16]}  Ne7 {[%clk 0:00:34]} 23. e5 {[%clk 0:01:10]}  Nfg8 {[%clk 0:00:33]} 24. exd6 {[%clk 0:01:00]}  Qxd6 {[%clk 0:00:33]} 25. Bxf4 {[%clk 0:00:59]}  Qd5 {[%clk 0:00:28]} 26. Qg3+ {[%clk 0:00:52]}  Ng6 {[%clk 0:00:28]} 27. Bxc7 {[%clk 0:00:52]}  Re8 {[%clk 0:00:26]} 28. h4 {[%clk 0:00:43]}  Nh6 {[%clk 0:00:15]} 29. Be5+ {[%clk 0:00:40]}  Kh7 {[%clk 0:00:10]} 30. Re2 {[%clk 0:00:30]}  Nxe5 {[%clk 0:00:10]} 31. dxe5 {[%clk 0:00:30]}  Rg8 {[%clk 0:00:09]} 32. Qf4 {[%clk 0:00:29]}  Rg4 {[%clk 0:00:06]} 33. Qd2 {[%clk 0:00:22]}  Qxd2 {[%clk 0:00:04]} 34. Rxd2 {[%clk 0:00:22]}  Rc8 {[%clk 0:00:02]} 35. b5 {[%clk 0:00:21]} 1-0


[Site "https://www.chess.com"]

[Event "Titled Tuesday Blitz April 11 Late 2023"]
[White "Zakhartsov, Vladimir"]
[Black "Kavutskiy, Konstantin"]
[WhiteFideId "4145097"]
[BlackFideId "2026384"]
[WhiteElo "2497"]
[BlackElo "2323"]
[Result "1-0"]
[Round "07"]
[TimeControl "180+2"]
[Date "2023.04.11"]
[WhiteClock "0:00:28"]
[BlackClock "0:00:16"]

1. e4 {[%clk 0:02:57]}  c5 {[%clk 0:02:59]} 2. Nf3 {[%clk 0:02:57]}  Nc6 {[%clk 0:02:59]} 3. g3 {[%clk 0:02:57]}  e6 {[%clk 0:02:59]} 4. Bg2 {[%clk 0:02:56]}  Nf6 {[%clk 0:02:59]} 5. Qe2 {[%clk 0:02:56]}  e5 {[%clk 0:02:57]} 6. O-O {[%clk 0:02:55]}  Be7 {[%clk 0:02:57]} 7. c3 {[%clk 0:02:55]}  O-O {[%clk 0:02:47]} 8. Rd1 {[%clk 0:02:55]}  d5 {[%clk 0:02:47]} 9. exd5 {[%clk 0:02:55]}  Qxd5 {[%clk 0:02:48]} 10. d4 {[%clk 0:02:40]}  e4 {[%clk 0:02:37]} 11. Ng5 {[%clk 0:02:36]}  Bg4 {[%clk 0:02:29]} 12. f3 {[%clk 0:02:36]}  exf3 {[%clk 0:02:27]} 13. Bxf3 {[%clk 0:02:35]}  Bxf3 {[%clk 0:02:27]} 14. Qxf3 {[%clk 0:02:36]}  Qxf3 {[%clk 0:02:26]} 15. Nxf3 {[%clk 0:02:36]}  cxd4 {[%clk 0:02:27]} 16. cxd4 {[%clk 0:02:35]}  Nb4 {[%clk 0:02:23]} 17. Nc3 {[%clk 0:02:32]}  Nbd5 {[%clk 0:02:21]} 18. Bg5 {[%clk 0:02:27]}  Rfd8 {[%clk 0:02:14]} 19. Bxf6 {[%clk 0:02:23]}  Bxf6 {[%clk 0:02:13]} 20. Rac1 {[%clk 0:02:17]}  a6 {[%clk 0:02:01]} 21. Ne4 {[%clk 0:01:53]}  Be7 {[%clk 0:01:49]} 22. a3 {[%clk 0:01:52]}  Rac8 {[%clk 0:01:34]} 23. Kf2 {[%clk 0:01:51]}  h6 {[%clk 0:01:26]} 24. Nc5 {[%clk 0:01:47]}  Rc7 {[%clk 0:00:54]} 25. Ne4 {[%clk 0:01:46]}  Rdc8 {[%clk 0:00:53]} 26. Rxc7 {[%clk 0:01:41]}  Rxc7 {[%clk 0:00:54]} 27. Rd2 {[%clk 0:01:37]}  f5 {[%clk 0:00:49]} 28. Nc5 {[%clk 0:01:37]}  Bxc5 {[%clk 0:00:50]} 29. dxc5 {[%clk 0:01:38]}  Nf6 {[%clk 0:00:36]} 30. Rd8+ {[%clk 0:01:38]}  Kh7 {[%clk 0:00:35]} 31. b4 {[%clk 0:01:37]}  Ne4+ {[%clk 0:00:34]} 32. Ke3 {[%clk 0:01:37]}  a5 {[%clk 0:00:35]} 33. Nd4 {[%clk 0:01:34]}  axb4 {[%clk 0:00:34]} 34. axb4 {[%clk 0:01:35]}  Kg6 {[%clk 0:00:31]} 35. Kf4 {[%clk 0:01:29]}  Nf2 {[%clk 0:00:26]} 36. Nxf5 {[%clk 0:01:26]}  Nh3+ {[%clk 0:00:26]} 37. Ke5 {[%clk 0:01:25]}  Rf7 {[%clk 0:00:20]} 38. Nd6 {[%clk 0:01:16]}  Rf2 {[%clk 0:00:19]} 39. Nxb7 {[%clk 0:01:14]}  Ng5 {[%clk 0:00:19]} 40. Kd5 {[%clk 0:00:41]}  Rxh2 {[%clk 0:00:18]} 41. c6 {[%clk 0:00:40]}  Rd2+ {[%clk 0:00:16]} 42. Kc5 {[%clk 0:00:40]}  Rc2+ {[%clk 0:00:17]} 43. Kb6 {[%clk 0:00:40]}  Ne6 {[%clk 0:00:16]} 44. Rd6 {[%clk 0:00:39]}  Kf5 {[%clk 0:00:17]} 45. Rxe6 {[%clk 0:00:27]}  Kxe6 {[%clk 0:00:17]} 46. Nc5+ {[%clk 0:00:28]}  Ke7 {[%clk 0:00:16]} 47. c7 {[%clk 0:00:28]}  Rxc5 {[%clk 0:00:16]} 48. bxc5 {[%clk 0:00:28]} 1-0


[Site "https://www.chess.com"]

[Event "Titled Tuesday Blitz April 11 Late 2023"]
[White "Rastbod, Ali"]
[Black "Andreikin, Dmitry"]
[WhiteFideId "12567477"]
[BlackFideId "4158814"]
[WhiteElo "2248"]
[BlackElo "2736"]
[Result "0-1"]
[Round "07"]
[TimeControl "180+2"]
[Date "2023.04.11"]
[WhiteClock "0:00:03"]
[BlackClock "0:00:11"]

1. d4 {[%clk 0:03:00]}  Nc6 {[%clk 0:03:00]} 2. d5 {[%clk 0:02:55]}  Ne5 {[%clk 0:03:00]} 3. e4 {[%clk 0:02:56]}  e6 {[%clk 0:03:00]} 4. dxe6 {[%clk 0:02:57]}  fxe6 {[%clk 0:02:58]} 5. f4 {[%clk 0:02:56]}  d5 {[%clk 0:02:47]} 6. fxe5 {[%clk 0:02:06]}  Qh4+ {[%clk 0:02:46]} 7. Kd2 {[%clk 0:02:07]}  dxe4 {[%clk 0:02:38]} 8. Kc3 {[%clk 0:01:55]}  Ne7 {[%clk 0:02:28]} 9. b3 {[%clk 0:01:54]}  a5 {[%clk 0:02:21]} 10. a4 {[%clk 0:01:48]}  Nd5+ {[%clk 0:02:20]} 11. Kb2 {[%clk 0:01:48]}  Bc5 {[%clk 0:02:20]} 12. g3 {[%clk 0:01:31]}  Qe7 {[%clk 0:02:16]} 13. Bg2 {[%clk 0:01:26]}  e3 {[%clk 0:02:16]} 14. Ne2 {[%clk 0:01:21]}  O-O {[%clk 0:02:15]} 15. Nbc3 {[%clk 0:01:08]}  Rf2 {[%clk 0:02:04]} 16. Bxd5 {[%clk 0:00:49]}  exd5 {[%clk 0:02:04]} 17. Qxd5+ {[%clk 0:00:49]}  Be6 {[%clk 0:02:02]} 18. Qxb7 {[%clk 0:00:49]}  Rd8 {[%clk 0:02:01]} 19. Bxe3 {[%clk 0:00:47]}  Bxe3 {[%clk 0:02:00]} 20. Rad1 {[%clk 0:00:48]}  Rdf8 {[%clk 0:01:55]} 21. Qe4 {[%clk 0:00:44]}  Qc5 {[%clk 0:01:49]} 22. Nd4 {[%clk 0:00:32]}  Bxd4 {[%clk 0:01:38]} 23. Qxd4 {[%clk 0:00:32]}  Qc6 {[%clk 0:01:38]} 24. Rhe1 {[%clk 0:00:19]}  Rxh2 {[%clk 0:01:26]} 25. Rd2 {[%clk 0:00:19]}  Rxd2 {[%clk 0:01:15]} 26. Qxd2 {[%clk 0:00:20]}  h6 {[%clk 0:01:16]} 27. Nb5 {[%clk 0:00:18]}  Qb6 {[%clk 0:01:05]} 28. Qd4 {[%clk 0:00:17]}  Qc6 {[%clk 0:00:52]} 29. Re3 {[%clk 0:00:17]}  Rf1 {[%clk 0:00:49]} 30. Qd8+ {[%clk 0:00:16]}  Kh7 {[%clk 0:00:49]} 31. Qd3+ {[%clk 0:00:16]}  Bf5 {[%clk 0:00:47]} 32. Qxf1 {[%clk 0:00:15]}  Qxc2+ {[%clk 0:00:47]} 33. Ka3 {[%clk 0:00:16]}  Qc5+ {[%clk 0:00:48]} 34. Kb2 {[%clk 0:00:16]}  Bg6 {[%clk 0:00:31]} 35. Rc3 {[%clk 0:00:11]}  Qxe5 {[%clk 0:00:31]} 36. Na3 {[%clk 0:00:08]}  Qd4 {[%clk 0:00:27]} 37. Qe2 {[%clk 0:00:06]}  Qd6 {[%clk 0:00:24]} 38. Nc4 {[%clk 0:00:06]}  Qd5 {[%clk 0:00:23]} 39. Qd2 {[%clk 0:00:06]}  Qh1 {[%clk 0:00:22]} 40. Re3 {[%clk 0:00:05]}  Qb1+ {[%clk 0:00:22]} 41. Kc3 {[%clk 0:00:03]}  c5 {[%clk 0:00:21]} 42. Nxa5 {[%clk 0:00:03]}  Qf5 {[%clk 0:00:17]} 43. Nc4 {[%clk 0:00:03]}  Qf6+ {[%clk 0:00:18]} 44. Ne5 {[%clk 0:00:04]}  Bb1 {[%clk 0:00:16]} 45. Kb2 {[%clk 0:00:04]}  Bf5 {[%clk 0:00:16]} 46. g4 {[%clk 0:00:04]}  Bxg4 {[%clk 0:00:16]} 47. Qc3 {[%clk 0:00:03]}  Qf2+ {[%clk 0:00:14]} 48. Ka3 {[%clk 0:00:03]}  Bf5 {[%clk 0:00:15]} 49. Rf3 {[%clk 0:00:02]}  Qg1 {[%clk 0:00:13]} 50. Rxf5 {[%clk 0:00:03]}  Qd1 {[%clk 0:00:11]} 51. Qd3 {[%clk 0:00:03]}  Qa1# {[%clk 0:00:11]} 0-1


[Site "https://www.chess.com"]

[Event "Titled Tuesday Blitz April 11 Late 2023"]
[White "Bluebaum, Matthias"]
[Black "Manukyan, Sargis A."]
[WhiteFideId "24651516"]
[BlackFideId "13303970"]
[WhiteElo "2638"]
[BlackElo "2187"]
[Result "1-0"]
[Round "07"]
[TimeControl "180+2"]
[Date "2023.04.11"]
[WhiteClock "0:01:54"]
[BlackClock "0:00:50"]

1. d4 {[%clk 0:03:00]}  d5 {[%clk 0:03:00]} 2. c4 {[%clk 0:03:01]}  e6 {[%clk 0:02:58]} 3. Nc3 {[%clk 0:03:01]}  Nf6 {[%clk 0:02:59]} 4. cxd5 {[%clk 0:03:02]}  Nxd5 {[%clk 0:02:58]} 5. e4 {[%clk 0:03:02]}  Nxc3 {[%clk 0:02:58]} 6. bxc3 {[%clk 0:03:02]}  c5 {[%clk 0:02:59]} 7. Rb1 {[%clk 0:03:03]}  cxd4 {[%clk 0:02:56]} 8. cxd4 {[%clk 0:03:04]}  Nc6 {[%clk 0:02:55]} 9. Bb5 {[%clk 0:03:04]}  Bd7 {[%clk 0:02:53]} 10. Nf3 {[%clk 0:03:04]}  Be7 {[%clk 0:02:52]} 11. O-O {[%clk 0:03:04]}  O-O {[%clk 0:02:53]} 12. d5 {[%clk 0:03:03]}  exd5 {[%clk 0:02:46]} 13. exd5 {[%clk 0:03:04]}  Nb8 {[%clk 0:02:31]} 14. Bd3 {[%clk 0:02:59]}  b6 {[%clk 0:02:18]} 15. Bf4 {[%clk 0:02:56]}  Bf6 {[%clk 0:02:14]} 16. Ne5 {[%clk 0:02:52]}  Re8 {[%clk 0:02:09]} 17. Bxh7+ {[%clk 0:02:17]}  Kxh7 {[%clk 0:02:04]} 18. Qh5+ {[%clk 0:02:17]}  Kg8 {[%clk 0:02:04]} 19. Qxf7+ {[%clk 0:02:17]}  Kh7 {[%clk 0:01:56]} 20. Rfe1 {[%clk 0:02:17]}  Bc8 {[%clk 0:01:33]} 21. Nc6 {[%clk 0:01:51]}  Rxe1+ {[%clk 0:00:59]} 22. Rxe1 {[%clk 0:01:51]}  Nxc6 {[%clk 0:00:51]} 23. Qh5+ {[%clk 0:01:51]}  Kg8 {[%clk 0:00:51]} 24. Re8+ {[%clk 0:01:52]}  Qxe8 {[%clk 0:00:50]} 25. Qxe8+ {[%clk 0:01:53]}  Kh7 {[%clk 0:00:50]} 26. Qxc6 {[%clk 0:01:54]} 1-0


[Site "https://www.chess.com"]

[Event "Titled Tuesday Blitz April 11 Late 2023"]
[White "Manelyuk, Daniil"]
[Black "Indjic, Aleksandar"]
[WhiteFideId "44173920"]
[BlackFideId "911925"]
[WhiteElo "2259"]
[BlackElo "2614"]
[Result "1-0"]
[Round "07"]
[TimeControl "180+2"]
[Date "2023.04.11"]
[WhiteClock "0:00:19"]
[BlackClock "0:00:17"]

1. e4 {[%clk 0:02:57]}  e5 {[%clk 0:02:55]} 2. Nf3 {[%clk 0:02:54]}  Nc6 {[%clk 0:02:55]} 3. Bb5 {[%clk 0:02:54]}  a6 {[%clk 0:02:54]} 4. Ba4 {[%clk 0:02:55]}  Nf6 {[%clk 0:02:54]} 5. O-O {[%clk 0:02:54]}  Bc5 {[%clk 0:02:54]} 6. c3 {[%clk 0:02:48]}  O-O {[%clk 0:02:54]} 7. d4 {[%clk 0:02:47]}  Bb6 {[%clk 0:02:55]} 8. Re1 {[%clk 0:02:43]}  d6 {[%clk 0:02:51]} 9. Bg5 {[%clk 0:02:37]}  h6 {[%clk 0:02:50]} 10. Bh4 {[%clk 0:02:37]}  g5 {[%clk 0:02:49]} 11. Bg3 {[%clk 0:02:37]}  exd4 {[%clk 0:02:41]} 12. Bxc6 {[%clk 0:02:26]}  bxc6 {[%clk 0:02:40]} 13. Nxd4 {[%clk 0:02:26]}  Re8 {[%clk 0:02:32]} 14. Nd2 {[%clk 0:02:08]}  c5 {[%clk 0:02:27]} 15. Nc2 {[%clk 0:01:50]}  Bg4 {[%clk 0:02:16]} 16. f3 {[%clk 0:01:49]}  Be6 {[%clk 0:02:15]} 17. Ne3 {[%clk 0:01:48]}  Qd7 {[%clk 0:02:14]} 18. Ndc4 {[%clk 0:01:48]}  Ba7 {[%clk 0:02:13]} 19. Qd3 {[%clk 0:01:46]}  Nh5 {[%clk 0:02:12]} 20. Nd5 {[%clk 0:01:41]}  Rad8 {[%clk 0:02:05]} 21. Rad1 {[%clk 0:01:37]}  c6 {[%clk 0:01:56]} 22. Nde3 {[%clk 0:01:25]}  Nxg3 {[%clk 0:01:53]} 23. hxg3 {[%clk 0:01:25]}  d5 {[%clk 0:01:53]} 24. exd5 {[%clk 0:01:20]}  cxd5 {[%clk 0:01:54]} 25. Ne5 {[%clk 0:01:21]}  Qc7 {[%clk 0:01:48]} 26. f4 {[%clk 0:01:14]}  c4 {[%clk 0:01:47]} 27. Qc2 {[%clk 0:00:47]}  f6 {[%clk 0:01:46]} 28. Qg6+ {[%clk 0:00:40]}  Qg7 {[%clk 0:01:45]} 29. Qxg7+ {[%clk 0:00:40]}  Kxg7 {[%clk 0:01:45]} 30. Nc6 {[%clk 0:00:41]}  Bg4 {[%clk 0:01:31]} 31. Nxa7 {[%clk 0:00:18]}  Bxd1 {[%clk 0:01:29]} 32. Nc6 {[%clk 0:00:19]}  Rc8 {[%clk 0:01:23]} 33. Ne7 {[%clk 0:00:20]}  Rxe7 {[%clk 0:00:25]} 34. Nf5+ {[%clk 0:00:20]}  Kf7 {[%clk 0:00:22]} 35. Rxe7+ {[%clk 0:00:19]}  Kg6 {[%clk 0:00:22]} 36. Ne3 {[%clk 0:00:18]}  Ba4 {[%clk 0:00:19]} 37. f5+ {[%clk 0:00:18]}  Kh5 {[%clk 0:00:18]} 38. g4+ {[%clk 0:00:18]}  Kh4 {[%clk 0:00:17]} 39. Kh2 {[%clk 0:00:19]} 1-0


[Site "https://www.chess.com"]